[Event "*** Titled Tuesday 3|2 Blitz"]
[Site "Chess.com"]
[Date "2016.09.06"]
[Round "6"]
[White "Ksenia_Legenko"]
[Black "TrickyTrapChess"]
[Result "1-0"]
[WhiteElo "2045"]
[BlackElo "2122"]
[TimeControl "180+2"]
[EndTime "18:10:23 PDT"]
[Termination "Ksenia_Legenko won by resignation"]

1. d4 {[%clk 0:03:01.9]} 1... e6 {[%clk 0:02:47.7]} 2. c4 {[%clk 0:03:02.2]}
2... f5 {[%clk 0:02:47.1]} 3. g3 {[%clk 0:03:00.3]} 3... Nf6 {[%clk 0:02:46.9]}
4. Bg2 {[%clk 0:03:01.2]} 4... d5 {[%clk 0:02:45.1]} 5. Qc2 {[%clk 0:03:00.5]}
5... c6 {[%clk 0:02:41.2]} 6. Nh3 {[%clk 0:03:01]} 6... Bd6 {[%clk 0:02:39.7]}
7. Bf4 {[%clk 0:03:00.8]} 7... O-O {[%clk 0:02:39.4]} 8. O-O {[%clk 0:03:00.3]}
8... Ne4 {[%clk 0:02:38.3]} 9. Nd2 {[%clk 0:02:53.8]} 9... Bxf4 {[%clk
0:02:28.9]} 10. Nxf4 {[%clk 0:02:54]} 10... g5 {[%clk 0:02:28.7]} 11. Nd3 {[%clk
0:02:54.8]} 11... Nd7 {[%clk 0:02:28.8]} 12. Nf3 {[%clk 0:02:54.1]} 12... Qf6
{[%clk 0:02:26.6]} 13. Nfe5 {[%clk 0:02:53.3]} 13... h5 {[%clk 0:02:17.5]} 14.
f3 {[%clk 0:02:47.7]} 14... Nd6 {[%clk 0:02:17.6]} 15. b3 {[%clk 0:02:40.1]}
15... f4 {[%clk 0:02:11.6]} 16. e4 {[%clk 0:02:26.9]} 16... fxe3 {[%clk
0:02:01.3]} 17. Rae1 {[%clk 0:02:21.9]} 17... Nf5 {[%clk 0:02:01.2]} 18. Qc3
{[%clk 0:02:14.6]} 18... c5 {[%clk 0:01:54.2]} 19. dxc5 {[%clk 0:01:59]} 19...
d4 {[%clk 0:01:54.4]} 20. Nxd7 {[%clk 0:01:57]} 20... Bxd7 {[%clk 0:01:54.9]}
21. Qc2 {[%clk 0:01:51.7]} 21... Bc6 {[%clk 0:01:53.2]} 22. b4 {[%clk
0:01:51.8]} 22... a6 {[%clk 0:01:32.6]} 23. a4 {[%clk 0:01:51.3]} 23... e2
{[%clk 0:01:08.6]} 24. Qxe2 {[%clk 0:01:25.2]} 24... Ne3 {[%clk 0:01:06.8]} 25.
Rf2 {[%clk 0:01:26.1]} 25... Nxg2 {[%clk 0:01:03]} 26. Rxg2 {[%clk 0:01:22.9]}
26... Bxf3 {[%clk 0:00:58.8]} 27. Qxe6+ {[%clk 0:01:23.7]} 27... Qxe6 {[%clk
0:00:59.7]} 28. Rxe6 {[%clk 0:01:24]} 28... Bxg2 {[%clk 0:01:00.2]} 29. Kxg2
{[%clk 0:01:25.3]} 29... Rae8 {[%clk 0:01:01.3]} 30. Rxe8 {[%clk 0:01:24.5]}
30... Rxe8 {[%clk 0:01:02]} 31. b5 {[%clk 0:01:26]} 31... axb5 {[%clk 0:00:37]}
32. axb5 {[%clk 0:01:20]} 32... Re2+ {[%clk 0:00:34.6]} 33. Kf1 {[%clk
0:01:18.6]} 33... Rc2 {[%clk 0:00:35.1]} 34. Ne5 {[%clk 0:00:58.6]} 34... Kf8
{[%clk 0:00:29.8]} 35. c6 {[%clk 0:00:57.9]} 35... bxc6 {[%clk 0:00:25.9]} 36.
bxc6 {[%clk 0:00:51.1]} 36... Ra2 {[%clk 0:00:22.1]} 37. c7 {[%clk 0:00:50.7]}
37... Ra8 {[%clk 0:00:21.2]} 38. Nc6 {[%clk 0:00:46.8]} 38... Rc8 {[%clk
0:00:17.1]} 39. Nxd4 {[%clk 0:00:47.5]} 39... Ke7 {[%clk 0:00:17.4]} 40. Nb5
{[%clk 0:00:48.1]} 40... Kd7 {[%clk 0:00:18.5]} 41. Kg2 {[%clk 0:00:45.8]} 41...
Kc6 {[%clk 0:00:20.1]} 42. Kf3 {[%clk 0:00:45.9]} 42... Kc5 {[%clk 0:00:21.2]}
43. Ke4 {[%clk 0:00:46]} 43... Re8+ {[%clk 0:00:19.8]} 44. Kf5 {[%clk
0:00:47.2]} 44... h4 {[%clk 0:00:16.9]} 45. Kxg5 {[%clk 0:00:45.6]} 45... hxg3
{[%clk 0:00:17.5]} 46. hxg3 {[%clk 0:00:46.8]} 46... Rg8+ {[%clk 0:00:19.1]} 47.
Kf4 {[%clk 0:00:47.5]} 47... Rf8+ {[%clk 0:00:07.3]} 48. Ke3 {[%clk 0:00:48]}
48... Re8+ {[%clk 0:00:08.3]} 49. Kf3 {[%clk 0:00:48.6]} 49... Rf8+ {[%clk
0:00:09.5]} 50. Kg2 {[%clk 0:00:49.6]} 50... Rg8 {[%clk 0:00:11.1]} 51. Na7
{[%clk 0:00:48.2]} 51... Kxc4 {[%clk 0:00:08.8]} 52. c8=Q+ {[%clk 0:00:48.8]}
52... Rxc8 {[%clk 0:00:10.4]} 53. Nxc8 {[%clk 0:00:49.7]} 53... Kc5 {[%clk
0:00:12.3]} 54. Kf3 {[%clk 0:00:50.7]} 54... Kc6 {[%clk 0:00:13.6]} 55. Kf4
{[%clk 0:00:52]} 55... Kd7 {[%clk 0:00:15.2]} 56. Nb6+ {[%clk 0:00:52.8]} 56...
Ke7 {[%clk 0:00:17.1]} 57. Kf5 {[%clk 0:00:53.7]} 57... Kf7 {[%clk 0:00:19]} 58.
g4 {[%clk 0:00:54.8]} 58... Kg7 {[%clk 0:00:20.9]} 59. Kg5 {[%clk 0:00:55.9]}
59... Kf7 {[%clk 0:00:22.8]} 60. Kh6 {[%clk 0:00:57]} 60... Kg8 {[%clk
0:00:23.8]} 61. g5 {[%clk 0:00:58.3]} 61... Kh8 {[%clk 0:00:25.7]} 62. Kg6
{[%clk 0:00:58.9]} 62... Kg8 {[%clk 0:00:27.6]} 63. Nc4 {[%clk 0:00:59.9]} 63...
Kf8 {[%clk 0:00:29.5]} 64. Kh7 {[%clk 0:01:01]} 64... Kf7 {[%clk 0:00:30.1]} 65.
g6+ {[%clk 0:01:02.2]} 65... Kf6 {[%clk 0:00:31.2]} 66. g7 {[%clk 0:01:03.4]}
1-0

[Event "*** Titled Tuesday 3|2 Blitz"]
[Site "Chess.com"]
[Date "2016.09.06"]
[Round "6"]
[White "BellJackson95"]
[Black "andryusha"]
[Result "1/2-1/2"]
[WhiteElo "2158"]
[BlackElo "2187"]
[TimeControl "180+2"]
[EndTime "18:12:06 PDT"]
[Termination "Game drawn - insufficient material"]

1. e4 {[%clk 0:02:55.6]} 1... e5 {[%clk 0:02:59.9]} 2. f4 {[%clk 0:02:49.3]}
2... exf4 {[%clk 0:02:54.1]} 3. Nf3 {[%clk 0:02:50]} 3... Ne7 {[%clk 0:02:54]}
4. d4 {[%clk 0:02:31.2]} 4... d5 {[%clk 0:02:52.4]} 5. e5 {[%clk 0:02:29]} 5...
Ng6 {[%clk 0:02:42.1]} 6. Be2 {[%clk 0:02:23.2]} 6... c5 {[%clk 0:02:36.1]} 7.
O-O {[%clk 0:02:17.6]} 7... Nc6 {[%clk 0:02:36.7]} 8. c3 {[%clk 0:02:17.9]} 8...
cxd4 {[%clk 0:02:37.1]} 9. cxd4 {[%clk 0:02:19.8]} 9... Qb6 {[%clk 0:02:38.2]}
10. Nc3 {[%clk 0:02:10.3]} 10... Be6 {[%clk 0:02:37.9]} 11. Kh1 {[%clk
0:02:04.1]} 11... Be7 {[%clk 0:02:33.5]} 12. Na4 {[%clk 0:01:32.6]} 12... Qc7
{[%clk 0:02:26.7]} 13. Bd2 {[%clk 0:01:27.6]} 13... O-O {[%clk 0:02:25.6]} 14.
Rc1 {[%clk 0:01:27.8]} 14... a6 {[%clk 0:02:16.5]} 15. b4 {[%clk 0:01:26]} 15...
Bg4 {[%clk 0:01:54]} 16. Nc5 {[%clk 0:01:17]} 16... Bxc5 {[%clk 0:01:52.4]} 17.
Rxc5 {[%clk 0:01:15.8]} 17... b6 {[%clk 0:01:47.8]} 18. Rc1 {[%clk 0:01:14.4]}
18... Qd7 {[%clk 0:01:41.2]} 19. b5 {[%clk 0:01:09.5]} 19... axb5 {[%clk
0:01:39.3]} 20. Bxb5 {[%clk 0:01:11.4]} 20... Nge7 {[%clk 0:01:38.6]} 21. a4
{[%clk 0:01:00.3]} 21... g5 {[%clk 0:01:36.3]} 22. h3 {[%clk 0:00:54.9]} 22...
Bxf3 {[%clk 0:01:31.7]} 23. Rxf3 {[%clk 0:00:56.8]} 23... Qe6 {[%clk 0:01:30.6]}
24. Be1 {[%clk 0:00:56.4]} 24... Rfc8 {[%clk 0:01:19.9]} 25. Rfc3 {[%clk
0:00:52]} 25... Na5 {[%clk 0:01:14.7]} 26. Rxc8+ {[%clk 0:00:51]} 26... Rxc8
{[%clk 0:01:15.8]} 27. Rxc8+ {[%clk 0:00:49.7]} 27... Qxc8 {[%clk 0:01:13.8]}
28. h4 {[%clk 0:00:44.7]} 28... h6 {[%clk 0:01:01.9]} 29. hxg5 {[%clk
0:00:39.9]} 29... hxg5 {[%clk 0:01:03.2]} 30. Qh5 {[%clk 0:00:40.3]} 30... Qc1
{[%clk 0:00:57.9]} 31. Qxg5+ {[%clk 0:00:36.5]} 31... Ng6 {[%clk 0:00:59.1]} 32.
Qd8+ {[%clk 0:00:25]} 32... Kh7 {[%clk 0:00:58.8]} 33. Qxb6 {[%clk 0:00:19.7]}
33... Qxe1+ {[%clk 0:00:58.9]} 34. Kh2 {[%clk 0:00:21.3]} 34... Nh4 {[%clk
0:00:54.4]} 35. Bd3+ {[%clk 0:00:17.8]} 35... Kg7 {[%clk 0:00:43.3]} 36. Qf6+
{[%clk 0:00:16.3]} 36... Kf8 {[%clk 0:00:43]} 37. Qxf4 {[%clk 0:00:13.8]} 37...
Nc4 {[%clk 0:00:35.1]} 38. e6 {[%clk 0:00:12.7]} 38... Qxe6 {[%clk 0:00:29]} 39.
Qxh4 {[%clk 0:00:11.6]} 39... Qd6+ {[%clk 0:00:27.6]} 40. Qg3 {[%clk 0:00:10.8]}
40... Qh6+ {[%clk 0:00:28.4]} 41. Qh3 {[%clk 0:00:09.6]} 41... Qd6+ {[%clk
0:00:29.2]} 42. Kh1 {[%clk 0:00:09.9]} 42... Nd2 {[%clk 0:00:26.1]} 43. Qh8+
{[%clk 0:00:09.3]} 43... Ke7 {[%clk 0:00:26.1]} 44. Qe5+ {[%clk 0:00:09.5]}
44... Qxe5 {[%clk 0:00:27.5]} 45. dxe5 {[%clk 0:00:11.4]} 45... Nb3 {[%clk
0:00:28]} 46. Bf5 {[%clk 0:00:10.6]} 46... d4 {[%clk 0:00:24.1]} 47. Kg1 {[%clk
0:00:11.3]} 47... Nc5 {[%clk 0:00:25]} 48. a5 {[%clk 0:00:11.2]} 48... Kd8
{[%clk 0:00:19.2]} 49. Kf2 {[%clk 0:00:10.4]} 49... Kc7 {[%clk 0:00:20.5]} 50.
Ke2 {[%clk 0:00:09.9]} 50... Kb7 {[%clk 0:00:21.7]} 51. Bd3 {[%clk 0:00:10.3]}
51... Nd7 {[%clk 0:00:21.5]} 52. Bc4 {[%clk 0:00:08]} 52... Nxe5 {[%clk
0:00:22.5]} 53. Bb5 {[%clk 0:00:07.7]} 53... f6 {[%clk 0:00:19.9]} 54. g3 {[%clk
0:00:08]} 54... Ka7 {[%clk 0:00:21.1]} 55. Kd2 {[%clk 0:00:08.4]} 55... Kb7
{[%clk 0:00:22.5]} 56. Bd3 {[%clk 0:00:08.5]} 56... Kc6 {[%clk 0:00:22.1]} 57.
Kc2 {[%clk 0:00:07.6]} 57... Nd7 {[%clk 0:00:22.5]} 58. Be4+ {[%clk 0:00:06.9]}
58... Kb5 {[%clk 0:00:23.3]} 59. Bf5 {[%clk 0:00:07.5]} 59... Nc5 {[%clk
0:00:22.8]} 60. Bd3+ {[%clk 0:00:07.8]} 60... Kxa5 {[%clk 0:00:23.2]} 61. Bc4
{[%clk 0:00:08.9]} 61... Kb4 {[%clk 0:00:24.2]} 62. Bd5 {[%clk 0:00:09.7]} 62...
Nd7 {[%clk 0:00:23.1]} 63. Kd3 {[%clk 0:00:09.8]} 63... Kc5 {[%clk 0:00:23.8]}
64. Ba2 {[%clk 0:00:10.3]} 64... Ne5+ {[%clk 0:00:24.7]} 65. Ke4 {[%clk
0:00:12.2]} 65... d3 {[%clk 0:00:24.5]} 66. Ke3 {[%clk 0:00:12.7]} 66... Kb4
{[%clk 0:00:22.6]} 67. Bb1 {[%clk 0:00:12.3]} 67... Kc3 {[%clk 0:00:23.6]} 68.
Bxd3 {[%clk 0:00:12.7]} 68... Nxd3 {[%clk 0:00:24.7]} 69. Ke4 {[%clk 0:00:13.9]}
69... Nc5+ {[%clk 0:00:19.5]} 70. Kf5 {[%clk 0:00:14.7]} 70... Nd7 {[%clk
0:00:20.3]} 71. g4 {[%clk 0:00:16.6]} 71... Kd4 {[%clk 0:00:20.7]} 72. g5 {[%clk
0:00:17.4]} 72... fxg5 {[%clk 0:00:22.2]} 73. Kxg5 {[%clk 0:00:19.3]} 1/2-1/2

[Event "*** Titled Tuesday 3|2 Blitz"]
[Site "Chess.com"]
[Date "2016.09.06"]
[Round "7"]
[White "Alexander_Moskalenko"]
[Black "cheese111"]
[Result "1-0"]
[WhiteElo "2642"]
[BlackElo "2283"]
[TimeControl "180+2"]
[EndTime "18:21:18 PDT"]
[Termination "Alexander_Moskalenko won on time"]

1. b3 {[%clk 0:03:02]} 1... e5 {[%clk 0:03:00.3]} 2. Bb2 {[%clk 0:03:03.9]} 2...
Nc6 {[%clk 0:03:01.5]} 3. e3 {[%clk 0:03:04.1]} 3... Nf6 {[%clk 0:03:02.4]} 4.
Bb5 {[%clk 0:03:05.5]} 4... Bd6 {[%clk 0:03:03.3]} 5. Na3 {[%clk 0:03:06.7]}
5... e4 {[%clk 0:03:04.4]} 6. Nc4 {[%clk 0:03:06]} 6... Be7 {[%clk 0:03:05.2]}
7. Bxc6 {[%clk 0:03:03.7]} 7... dxc6 {[%clk 0:02:57.6]} 8. d3 {[%clk 0:03:05.6]}
8... O-O {[%clk 0:02:51.8]} 9. dxe4 {[%clk 0:03:04.7]} 9... Qxd1+ {[%clk
0:02:51.2]} 10. Rxd1 {[%clk 0:03:05]} 10... Nxe4 {[%clk 0:02:53.1]} 11. Ne2
{[%clk 0:03:03.7]} 11... f6 {[%clk 0:02:48.3]} 12. f3 {[%clk 0:03:04.2]} 12...
Nd6 {[%clk 0:02:48.8]} 13. Nxd6 {[%clk 0:03:04.8]} 13... cxd6 {[%clk 0:02:48]}
14. c4 {[%clk 0:03:01.7]} 14... Be6 {[%clk 0:02:45.7]} 15. Nf4 {[%clk
0:03:02.2]} 15... Kf7 {[%clk 0:02:31.9]} 16. Ba3 {[%clk 0:03:03.3]} 16... Rad8
{[%clk 0:02:24]} 17. h4 {[%clk 0:02:59.9]} 17... Rd7 {[%clk 0:02:07.3]} 18. Kf2
{[%clk 0:02:57.7]} 18... Rfd8 {[%clk 0:02:06.2]} 19. Rd2 {[%clk 0:02:58.1]}
19... d5 {[%clk 0:02:01.2]} 20. cxd5 {[%clk 0:02:56.5]} 20... Bxd5 {[%clk
0:01:57.5]} 21. Bxe7 {[%clk 0:02:56.7]} 21... Kxe7 {[%clk 0:01:57.7]} 22. e4
{[%clk 0:02:42.9]} 22... Bf7 {[%clk 0:01:57.1]} 23. Rxd7+ {[%clk 0:02:44.8]}
23... Rxd7 {[%clk 0:01:58.2]} 24. Ke3 {[%clk 0:02:46.5]} 24... c5 {[%clk
0:01:52.6]} 25. g4 {[%clk 0:02:47.1]} 25... h6 {[%clk 0:01:44.4]} 26. Rg1 {[%clk
0:02:43.3]} 26... g5 {[%clk 0:01:36.3]} 27. Ne2 {[%clk 0:02:43.6]} 27... b6
{[%clk 0:00:28.6]} 28. Rh1 {[%clk 0:02:43.9]} 28... a5 {[%clk 0:00:26.8]} 29.
Ng3 {[%clk 0:02:41]} 29... Be6 {[%clk 0:00:26.5]} 30. hxg5 {[%clk 0:02:41.8]}
30... hxg5 {[%clk 0:00:27.5]} 31. Rh6 {[%clk 0:02:32.2]} 31... Rd6 {[%clk
0:00:10.7]} 32. e5 {[%clk 0:02:24.5]} 32... fxe5 {[%clk 0:00:08.2]} 33. Ne4
{[%clk 0:02:26]} 33... Rd4 {[%clk 0:00:05.8]} 34. Nxg5 {[%clk 0:02:26.4]} 1-0

[Event "*** Titled Tuesday 3|2 Blitz"]
[Site "Chess.com"]
[Date "2016.09.06"]
[Round "7"]
[White "Rumpel-VK"]
[Black "ShimanovAlex"]
[Result "0-1"]
[WhiteElo "2443"]
[BlackElo "2556"]
[TimeControl "180+2"]
[EndTime "18:21:22 PDT"]
[Termination "ShimanovAlex won on time"]

1. e4 {[%clk 0:03:01.9]} 1... e5 {[%clk 0:02:57.9]} 2. Nf3 {[%clk 0:03:02.5]}
2... Qe7 {[%clk 0:02:59.1]} 3. Be2 {[%clk 0:03:02.4]} 3... Nf6 {[%clk
0:02:59.1]} 4. d3 {[%clk 0:03:03]} 4... d6 {[%clk 0:02:59.1]} 5. O-O {[%clk
0:03:03.1]} 5... h6 {[%clk 0:02:58.6]} 6. c3 {[%clk 0:03:03.6]} 6... g5 {[%clk
0:02:59.2]} 7. Ne1 {[%clk 0:02:51.5]} 7... Bg7 {[%clk 0:02:58.4]} 8. Nc2 {[%clk
0:02:51.3]} 8... Nbd7 {[%clk 0:02:57.6]} 9. Ne3 {[%clk 0:02:51.6]} 9... Nf8
{[%clk 0:02:58.7]} 10. Na3 {[%clk 0:02:43.9]} 10... Ng6 {[%clk 0:02:58.5]} 11.
Bg4 {[%clk 0:02:35.3]} 11... Nxg4 {[%clk 0:02:58.1]} 12. Nxg4 {[%clk 0:02:36.3]}
12... f5 {[%clk 0:02:59]} 13. exf5 {[%clk 0:02:36.1]} 13... Bxf5 {[%clk
0:03:00.9]} 14. d4 {[%clk 0:02:33.9]} 14... O-O-O {[%clk 0:02:58.3]} 15. Ne3
{[%clk 0:02:31.5]} 15... Be6 {[%clk 0:02:54.4]} 16. Qa4 {[%clk 0:02:15.4]} 16...
Kb8 {[%clk 0:02:54.4]} 17. d5 {[%clk 0:02:13.2]} 17... Bd7 {[%clk 0:02:54.9]}
18. Qe4 {[%clk 0:02:10.7]} 18... Nf4 {[%clk 0:02:53.1]} 19. Bd2 {[%clk
0:02:04.8]} 19... h5 {[%clk 0:02:51.4]} 20. c4 {[%clk 0:02:02.1]} 20... g4
{[%clk 0:02:46.1]} 21. Nf5 {[%clk 0:02:00.3]} 21... Bxf5 {[%clk 0:02:25]} 22.
Qxf5 {[%clk 0:02:01]} 22... Bh6 {[%clk 0:02:26.9]} 23. Bxf4 {[%clk 0:01:57.6]}
23... Bxf4 {[%clk 0:02:25.8]} 24. Rfe1 {[%clk 0:01:50.4]} 24... Qg7 {[%clk
0:02:24.1]} 25. Nb5 {[%clk 0:01:33]} 25... h4 {[%clk 0:02:23.1]} 26. Nd4 {[%clk
0:01:14.9]} 26... Bxh2+ {[%clk 0:02:12]} 27. Kxh2 {[%clk 0:01:13.9]} 27... g3+
{[%clk 0:02:11.9]} 28. Kg1 {[%clk 0:01:12.7]} 28... exd4 {[%clk 0:02:10.8]} 29.
f3 {[%clk 0:01:04.8]} 29... h3 {[%clk 0:02:05.3]} 30. gxh3 {[%clk 0:01:04.4]}
30... d3 {[%clk 0:02:05.6]} 0-1

[Event "*** Titled Tuesday 3|2 Blitz"]
[Site "Chess.com"]
[Date "2016.09.06"]
[Round "7"]
[White "pedromartinez91"]
[Black "jk13"]
[Result "0-1"]
[WhiteElo "2371"]
[BlackElo "2518"]
[TimeControl "180+2"]
[EndTime "18:21:51 PDT"]
[Termination "jk13 won on time"]

1. e4 {[%clk 0:02:44.9]} 1... e5 {[%clk 0:03:00.1]} 2. Nf3 {[%clk 0:02:31.1]}
2... Nc6 {[%clk 0:03:01.5]} 3. Bb5 {[%clk 0:02:30.5]} 3... Nf6 {[%clk
0:03:02.9]} 4. d3 {[%clk 0:02:30.2]} 4... Bc5 {[%clk 0:03:03.3]} 5. O-O {[%clk
0:02:29]} 5... d6 {[%clk 0:03:04.4]} 6. c3 {[%clk 0:02:29.7]} 6... O-O {[%clk
0:03:05.9]} 7. h3 {[%clk 0:02:29.5]} 7... a6 {[%clk 0:03:07.4]} 8. Ba4 {[%clk
0:02:30.1]} 8... Ba7 {[%clk 0:03:09]} 9. Bg5 {[%clk 0:02:29.5]} 9... h6 {[%clk
0:03:08.5]} 10. Be3 {[%clk 0:02:29.5]} 10... Bxe3 {[%clk 0:03:05.7]} 11. fxe3
{[%clk 0:02:29]} 11... Ne7 {[%clk 0:03:07.6]} 12. Nbd2 {[%clk 0:02:28]} 12...
Ng6 {[%clk 0:03:07.2]} 13. Qe1 {[%clk 0:02:23.1]} 13... d5 {[%clk 0:03:07.8]}
14. d4 {[%clk 0:01:54]} 14... Nxe4 {[%clk 0:02:58.8]} 15. Nxe4 {[%clk
0:01:52.4]} 15... dxe4 {[%clk 0:03:00.1]} 16. Nxe5 {[%clk 0:01:52.8]} 16... Nxe5
{[%clk 0:03:01.1]} 17. dxe5 {[%clk 0:01:53.7]} 17... Qg5 {[%clk 0:03:01.5]} 18.
Bc2 {[%clk 0:01:29.4]} 18... Bxh3 {[%clk 0:02:52.1]} 19. Bxe4 {[%clk 0:01:29.8]}
19... c6 {[%clk 0:02:49.6]} 20. Qf2 {[%clk 0:00:58.8]} 20... Rae8 {[%clk
0:02:46.4]} 21. Bc2 {[%clk 0:00:33.7]} 21... Rxe5 {[%clk 0:02:44.3]} 22. Rae1
{[%clk 0:00:33.4]} 22... Be6 {[%clk 0:02:37.7]} 23. Qf4 {[%clk 0:00:20.4]} 23...
Rd8 {[%clk 0:02:35.3]} 24. Qb4 {[%clk 0:00:13]} 24... Rxe3 {[%clk 0:02:28.8]}
25. Bd1 {[%clk 0:00:03.1]} 25... Rxe1 {[%clk 0:02:23.6]} 26. Rxe1 {[%clk
0:00:02.6]} 26... Qd2 {[%clk 0:02:00.3]} 27. Rf1 {[%clk 0:00:02.7]} 27... Qe3+
{[%clk 0:01:51]} 28. Kh1 {[%clk 0:00:02.6]} 28... b5 {[%clk 0:01:45.4]} 29. Bf3
{[%clk 0:00:02.7]} 29... Bc4 {[%clk 0:01:36.7]} 0-1

[Event "*** Titled Tuesday 3|2 Blitz"]
[Site "Chess.com"]
[Date "2016.09.06"]
[Round "7"]
[White "MaestroASK"]
[Black "IamSchrodingersCat"]
[Result "1-0"]
[WhiteElo "2469"]
[BlackElo "2269"]
[TimeControl "180+2"]
[EndTime "18:22:07 PDT"]
[Termination "MaestroASK won by resignation"]

1. g3 {[%clk 0:03:01.9]} 1... Nf6 {[%clk 0:02:59.6]} 2. Bg2 {[%clk 0:03:01.9]}
2... d5 {[%clk 0:02:59.4]} 3. d3 {[%clk 0:03:03.4]} 3... e5 {[%clk 0:02:58.2]}
4. e4 {[%clk 0:03:03.8]} 4... dxe4 {[%clk 0:02:57.6]} 5. dxe4 {[%clk 0:03:05.7]}
5... Qxd1+ {[%clk 0:02:59.2]} 6. Kxd1 {[%clk 0:03:07.6]} 6... Nc6 {[%clk
0:02:58.2]} 7. f3 {[%clk 0:03:08.6]} 7... Be6 {[%clk 0:02:57.9]} 8. Bh3 {[%clk
0:03:08.3]} 8... O-O-O+ {[%clk 0:02:54.7]} 9. Nd2 {[%clk 0:03:08.3]} 9... Bxh3
{[%clk 0:02:50.6]} 10. Nxh3 {[%clk 0:03:08.3]} 10... h6 {[%clk 0:02:52.5]} 11.
c3 {[%clk 0:03:07.5]} 11... Bc5 {[%clk 0:02:40.7]} 12. Ke2 {[%clk 0:03:07.9]}
12... a6 {[%clk 0:02:36.9]} 13. b4 {[%clk 0:03:07.8]} 13... Be7 {[%clk
0:02:20.8]} 14. a4 {[%clk 0:03:07.3]} 14... b5 {[%clk 0:02:14.6]} 15. Nf2 {[%clk
0:03:02]} 15... Kb7 {[%clk 0:02:11.9]} 16. Nb3 {[%clk 0:03:02.8]} 16... Ra8
{[%clk 0:01:45]} 17. Be3 {[%clk 0:03:01.9]} 17... Rhd8 {[%clk 0:01:43]} 18. Nd3
{[%clk 0:03:00.6]} 18... Bd6 {[%clk 0:01:32.4]} 19. axb5 {[%clk 0:02:44.8]}
19... axb5 {[%clk 0:01:30.8]} 20. Ndc5+ {[%clk 0:02:44.9]} 20... Bxc5 {[%clk
0:01:30.6]} 21. Nxc5+ {[%clk 0:02:45.4]} 21... Kb8 {[%clk 0:01:31.8]} 22. Rxa8+
{[%clk 0:02:40.4]} 22... Kxa8 {[%clk 0:01:33.7]} 23. Ra1+ {[%clk 0:02:41.1]}
23... Kb8 {[%clk 0:01:32.7]} 24. Ra6 {[%clk 0:02:39.7]} 24... Ne7 {[%clk
0:01:27.9]} 25. Nb3 {[%clk 0:02:32.5]} 25... Rd6 {[%clk 0:01:18.5]} 26. Ra5
{[%clk 0:02:31]} 26... c6 {[%clk 0:01:17.8]} 27. Nc5 {[%clk 0:02:22.5]} 27...
Rd8 {[%clk 0:00:57.4]} 28. Ra6 {[%clk 0:02:16.9]} 28... Nd7 {[%clk 0:00:54.7]}
29. Nd3 {[%clk 0:02:14.9]} 29... f6 {[%clk 0:00:49.9]} 30. f4 {[%clk 0:02:14.7]}
30... Rc8 {[%clk 0:00:35.8]} 31. fxe5 {[%clk 0:02:07]} 31... Nxe5 {[%clk
0:00:30.3]} 32. Nxe5 {[%clk 0:02:04.6]} 32... fxe5 {[%clk 0:00:32.2]} 33. Bc5
{[%clk 0:02:05.1]} 33... Ng6 {[%clk 0:00:28.6]} 34. Kf3 {[%clk 0:01:52.1]} 34...
h5 {[%clk 0:00:23.2]} 35. Ke2 {[%clk 0:01:49.8]} 35... h4 {[%clk 0:00:13.4]} 36.
Kf3 {[%clk 0:01:49.7]} 36... hxg3 {[%clk 0:00:14.1]} 37. hxg3 {[%clk 0:01:50.5]}
1-0

[Event "*** Titled Tuesday 3|2 Blitz"]
[Site "Chess.com"]
[Date "2016.09.06"]
[Round "7"]
[White "fidetrainerNET"]
[Black "spirals5"]
[Result "0-1"]
[WhiteElo "2170"]
[BlackElo "2260"]
[TimeControl "180+2"]
[EndTime "18:23:05 PDT"]
[Termination "spirals5 won by resignation"]

1. e4 {[%clk 0:03:01.9]} 1... c5 {[%clk 0:03:00.4]} 2. Nf3 {[%clk 0:03:03.2]}
2... d6 {[%clk 0:03:01.1]} 3. d4 {[%clk 0:03:05.1]} 3... cxd4 {[%clk 0:03:01.9]}
4. Nxd4 {[%clk 0:03:07]} 4... Nf6 {[%clk 0:03:02.4]} 5. Nc3 {[%clk 0:03:08.4]}
5... a6 {[%clk 0:03:03.3]} 6. Bg5 {[%clk 0:03:07.9]} 6... Nbd7 {[%clk
0:03:01.6]} 7. f4 {[%clk 0:03:07.1]} 7... b5 {[%clk 0:03:02.3]} 8. Bd3 {[%clk
0:03:03.3]} 8... Bb7 {[%clk 0:03:03]} 9. Qe2 {[%clk 0:03:02.6]} 9... h6 {[%clk
0:03:01]} 10. Bh4 {[%clk 0:03:01.4]} 10... e6 {[%clk 0:02:54.6]} 11. e5 {[%clk
0:02:59.8]} 11... dxe5 {[%clk 0:02:55.2]} 12. fxe5 {[%clk 0:03:00.3]} 12... g5
{[%clk 0:02:55.8]} 13. Nxe6 {[%clk 0:02:56.1]} 13... fxe6 {[%clk 0:02:52.7]} 14.
exf6 {[%clk 0:02:54.1]} 14... Qxf6 {[%clk 0:02:46.2]} 15. Rf1 {[%clk 0:02:52.9]}
15... Qe5 {[%clk 0:02:38]} 16. Bg6+ {[%clk 0:02:52.3]} 16... Kd8 {[%clk
0:02:37.6]} 17. Qxe5 {[%clk 0:02:50.2]} 17... Nxe5 {[%clk 0:02:38]} 18. O-O-O+
{[%clk 0:02:47.7]} 18... Kc8 {[%clk 0:02:19.4]} 19. Bf7 {[%clk 0:02:05.3]} 19...
gxh4 {[%clk 0:02:13.4]} 20. Bxe6+ {[%clk 0:02:06]} 20... Kb8 {[%clk 0:02:13.4]}
21. Nd5 {[%clk 0:02:04.9]} 21... Ka7 {[%clk 0:01:48.5]} 22. a4 {[%clk
0:01:53.8]} 22... bxa4 {[%clk 0:01:25.5]} 23. Nf6 {[%clk 0:01:47.6]} 23... Bc5
{[%clk 0:01:07.1]} 24. Rf5 {[%clk 0:01:42.4]} 24... Be3+ {[%clk 0:01:04.2]} 25.
Kb1 {[%clk 0:01:41.8]} 25... Nc6 {[%clk 0:01:01]} 26. Rd7 {[%clk 0:01:38.3]}
26... Rad8 {[%clk 0:01:01.1]} 27. Rfd5 {[%clk 0:01:14.8]} 27... Rxd7 {[%clk
0:00:59.6]} 28. Rxd7 {[%clk 0:01:15.7]} 28... Rd8 {[%clk 0:00:58.4]} 29. Rh7
{[%clk 0:01:15.7]} 29... Rd1+ {[%clk 0:00:46.9]} 30. Ka2 {[%clk 0:01:13.5]}
30... Nb4+ {[%clk 0:00:47.4]} 31. Ka3 {[%clk 0:01:13.4]} 31... Nxc2+ {[%clk
0:00:45.7]} 32. Kxa4 {[%clk 0:01:13.4]} 32... Ra1+ {[%clk 0:00:46]} 33. Kb3
{[%clk 0:01:13.4]} 33... Nd4+ {[%clk 0:00:46.4]} 34. Kc4 {[%clk 0:01:13.6]}
34... Nxe6 {[%clk 0:00:46.8]} 35. Nd5 {[%clk 0:01:14]} 35... Rc1+ {[%clk
0:00:42.5]} 36. Kb3 {[%clk 0:01:13.4]} 36... Nd4+ {[%clk 0:00:37.8]} 37. Kb4
{[%clk 0:01:14]} 37... Bd2+ {[%clk 0:00:35.8]} 38. Nc3 {[%clk 0:01:08.4]} 38...
Bxc3+ {[%clk 0:00:36]} 39. bxc3 {[%clk 0:01:08]} 39... Nc6+ {[%clk 0:00:33.3]}
40. Kc4 {[%clk 0:01:09.1]} 40... Kb6 {[%clk 0:00:32.7]} 41. Rxh6 {[%clk
0:01:07.2]} 41... Rc2 {[%clk 0:00:33.5]} 42. Rxh4 {[%clk 0:01:07.5]} 42... Rxg2
{[%clk 0:00:33.9]} 43. Rh6 {[%clk 0:01:06.7]} 43... a5 {[%clk 0:00:34.2]} 44. h4
{[%clk 0:01:05.6]} 44... a4 {[%clk 0:00:35.3]} 45. Rf6 {[%clk 0:00:57.9]} 45...
Rg4+ {[%clk 0:00:34.5]} 0-1